Workbook

Sheet 7 Year Balloon Loan Amort.
B4: 7 Year Balloon Loan Amortization
B5: Prepared by Your Name
B6: =NOW() -> 2010-04-19T20:51:36.450
B9: Name | D9: Billie Bob Jones | G9: Financial Inputs
B10: Address | D10: 808 Gun Street | G10: Loan Amount | H10: $100,000
B11: City, State, Zip | D11: Selma, SC 02777 | G11: Interest Rate | H11: 8.000%
B12: Telephone | D12: 555-555-5555 | G12: Period (in years) | H12: 30
G14: Loan Summary Information
B15: Loan Date | D15: 2009-01-04 | G15: Monthly Payment | H15: =IF(AND(H10>0,H11,H12),PMT(H11/12,H12*12,-H10),"") -> $733.76
B16: Loan Number | D16: 16899 | G16: Total Interest | H16: =IF(AND(H10>0,H11,H12),SUM(F25:F31),"") -> $54,113.66
B17: Miscellaneous | D17: Single Family | G17: Total Payments | H17: =IF(SUM(H15),H15*12*7,"") -> $61,636.22
B18: Appraised Value | D18: $150,000 | G18: Balloon Payment | H18: =IF(SUM(H31),H31,"") -> $92,477.43
B21: Amortization Schedule of 7 Year Balloon Loan
C22: Beginning | D22: Total | F22: Total | G22: Total | H22: Ending
C23: Mortgage | D23: Monthly | F23: Interest | G23: Principal | H23: Mortgage
B24: Year | C24: Balance | D24: Payment | F24: Portion | G24: Portion | H24: Balance
B25: =IF(AND(H10>0,H11,H12),1,"") -> 1 | C25: =IF(H10,+H10,"") -> $100,000.00 | D25: =IF(SUM($H$15),$H$15*12,"") -> $8,805.17 | F25: =IF(AND(SUM(D25)>0,SUM(G25)),D25-G25,"") -> $7,969.81 | G25: =IF(AND(SUM(C25)>0,H25),C25-H25,"") -> $835.36 | H25: =IF(AND($H$10>0,$H$11,$H$12),PV($H$11/12,($H$12-B25)*12,-$H$15),"") -> $99,164.64
B26: =IF(AND($H$10>0,$H$11,$H$12),2,"") -> 2 | C26: =IF(SUM(H25),H25,"") -> $99,164.64 | D26: =IF(SUM($H$15),$H$15*12,"") -> $8,805.17 | F26: =IF(AND(SUM(D26)>0,G26),+D26-G26,"") -> $7,900.48 | G26: =IF(AND(SUM(C26)>0,H26),+C26-H26,"") -> $904.70 | H26: $98,259.94
B27: =IF(AND($H$10>0,$H$11,$H$12),3,"") -> 3 | C27: $98,259.94 | D27: $8,805.17 | F27: $7,825.39 | G27: $979.79 | H27: $97,280.15
B28: =IF(AND($H$10>0,$H$11,$H$12),4,"") -> 4 | C28: $97,280.15 | D28: $8,805.17 | F28: $7,744.06 | G28: $1,061.11 | H28: $96,219.04
B29: =IF(AND($H$10>0,$H$11,$H$12),5,"") -> 5 | C29: $96,219.04 | D29: $8,805.17 | F29: $7,655.99 | G29: $1,149.18 | H29: $95,069.86
B30: =IF(AND($H$10>0,$H$11,$H$12),6,"") -> 6 | C30: $95,069.86 | D30: $8,805.17 | F30: $7,560.61 | G30: $1,244.56 | H30: $93,825.29
B31: =IF(AND($H$10>0,$H$11,$H$12),7,"") -> 7 | C31: $93,825.29 | D31: $8,805.17 | F31: $7,457.31 | G31: $1,347.86 | H31: $92,477.43
